[Event "Titled Tuesday Blitz April 26 Early 2022"]
[White "Srebrnic, Marko"]
[Black "Dauner, Benedikt"]
[WhiteFideId "14603616"]
[BlackFideId "16225899"]
[WhiteElo "2340"]
[BlackElo "2230"]
[Result "1-0"]
[Round "05"]
[TimeControl "180+1"]
[Date "2022.04.26"]
[WhiteClock "0:00:56"]
[BlackClock "0:00:02"]

1. e4 {[%clk 0:03:00]}  b6 {[%clk 0:02:59]} 2. Nc3 {[%clk 0:02:58]}  Bb7 {[%clk 0:02:59]} 3. g3 {[%clk 0:02:57]}  g6 {[%clk 0:02:58]} 4. Bg2 {[%clk 0:02:57]}  Bg7 {[%clk 0:02:58]} 5. Nge2 {[%clk 0:02:57]}  e6 {[%clk 0:02:58]} 6. O-O {[%clk 0:02:58]}  Ne7 {[%clk 0:02:59]} 7. d4 {[%clk 0:02:56]}  d6 {[%clk 0:02:59]} 8. Be3 {[%clk 0:02:54]}  Nd7 {[%clk 0:02:58]} 9. Qd2 {[%clk 0:02:54]}  h6 {[%clk 0:02:57]} 10. Rad1 {[%clk 0:02:53]}  a6 {[%clk 0:02:56]} 11. f4 {[%clk 0:02:53]}  d5 {[%clk 0:02:34]} 12. e5 {[%clk 0:02:51]}  h5 {[%clk 0:02:27]} 13. Kh1 {[%clk 0:02:50]}  c5 {[%clk 0:02:24]} 14. h3 {[%clk 0:02:45]}  Qc7 {[%clk 0:02:22]} 15. Nb1 {[%clk 0:02:40]}  O-O-O {[%clk 0:02:18]} 16. c3 {[%clk 0:02:39]}  Kb8 {[%clk 0:02:17]} 17. a4 {[%clk 0:02:38]}  Ka8 {[%clk 0:02:13]} 18. Na3 {[%clk 0:02:35]}  Nf5 {[%clk 0:02:08]} 19. Bf2 {[%clk 0:02:34]}  Bf8 {[%clk 0:02:07]} 20. Ra1 {[%clk 0:02:32]}  Be7 {[%clk 0:02:04]} 21. Kg1 {[%clk 0:02:30]}  Kb8 {[%clk 0:02:04]} 22. b4 {[%clk 0:02:28]}  c4 {[%clk 0:02:02]} 23. Nc2 {[%clk 0:02:26]}  Rdg8 {[%clk 0:01:58]} 24. Ne3 {[%clk 0:02:26]}  Ka7 {[%clk 0:01:49]} 25. Bf3 {[%clk 0:02:14]}  Ka8 {[%clk 0:01:48]} 26. Kg2 {[%clk 0:02:15]}  Nf8 {[%clk 0:01:42]} 27. Rh1 {[%clk 0:02:14]}  Nd7 {[%clk 0:01:21]} 28. g4 {[%clk 0:02:14]}  hxg4 {[%clk 0:01:08]} 29. hxg4 {[%clk 0:02:14]}  Nxe3+ {[%clk 0:01:07]} 30. Bxe3 {[%clk 0:02:13]}  Qd8 {[%clk 0:01:06]} 31. Ng3 {[%clk 0:02:11]}  f6 {[%clk 0:00:58]} 32. Rxh8 {[%clk 0:02:02]}  Rxh8 {[%clk 0:00:58]} 33. Rh1 {[%clk 0:02:03]}  Rxh1 {[%clk 0:00:58]} 34. Kxh1 {[%clk 0:02:04]}  fxe5 {[%clk 0:00:56]} 35. dxe5 {[%clk 0:02:02]}  g5 {[%clk 0:00:50]} 36. Ne2 {[%clk 0:01:58]}  gxf4 {[%clk 0:00:48]} 37. Bxf4 {[%clk 0:01:59]}  Qh8+ {[%clk 0:00:46]} 38. Kg2 {[%clk 0:01:58]}  Nxe5 {[%clk 0:00:46]} 39. Qd4 {[%clk 0:01:55]}  Bf6 {[%clk 0:00:41]} 40. g5 {[%clk 0:01:45]}  Bg7 {[%clk 0:00:35]} 41. Bxe5 {[%clk 0:01:24]}  Bxe5 {[%clk 0:00:34]} 42. Qxb6 {[%clk 0:01:24]}  Qh2+ {[%clk 0:00:32]} 43. Kf1 {[%clk 0:01:25]}  Bc7 {[%clk 0:00:21]} 44. Qg1 {[%clk 0:01:22]}  Qh7 {[%clk 0:00:17]} 45. g6 {[%clk 0:01:21]}  Qg7 {[%clk 0:00:17]} 46. Nd4 {[%clk 0:01:18]}  Bc8 {[%clk 0:00:15]} 47. Qg2 {[%clk 0:01:15]}  Kb8 {[%clk 0:00:14]} 48. b5 {[%clk 0:01:14]}  axb5 {[%clk 0:00:14]} 49. Nxb5 {[%clk 0:01:15]}  Be5 {[%clk 0:00:11]} 50. Qg1 {[%clk 0:01:13]}  Ba6 {[%clk 0:00:07]} 51. Qb6+ {[%clk 0:01:12]}  Bb7 {[%clk 0:00:07]} 52. Qxe6 {[%clk 0:01:11]}  Bxc3 {[%clk 0:00:03]} 53. Qd6+ {[%clk 0:00:57]}  Ka8 {[%clk 0:00:02]} 54. Qd8+ {[%clk 0:00:56]} 1-0


[Site "https://www.chess.com"]

[Event "Titled Tuesday Blitz April 26 Early 2022"]
[White "Stribuk, Artiom"]
[Black "Khusenkhojaev, Muhammad"]
[WhiteFideId "13515659"]
[BlackFideId "14700247"]
[WhiteElo "2259"]
[BlackElo "2180"]
[Result "1-0"]
[Round "05"]
[TimeControl "180+1"]
[Date "2022.04.26"]
[WhiteClock "0:00:21"]
[BlackClock "0:01:18"]

1. d4 {[%clk 0:03:00]}  Nf6 {[%clk 0:02:54]} 2. c4 {[%clk 0:03:01]}  e6 {[%clk 0:02:53]} 3. Nc3 {[%clk 0:02:59]}  d5 {[%clk 0:02:53]} 4. cxd5 {[%clk 0:02:58]}  exd5 {[%clk 0:02:53]} 5. Bg5 {[%clk 0:02:58]}  c6 {[%clk 0:02:51]} 6. e3 {[%clk 0:02:58]}  h6 {[%clk 0:02:52]} 7. Bf4 {[%clk 0:02:53]}  Bd6 {[%clk 0:02:52]} 8. Bg3 {[%clk 0:02:47]}  Bf5 {[%clk 0:02:44]} 9. Qb3 {[%clk 0:02:44]}  Bxg3 {[%clk 0:02:44]} 10. hxg3 {[%clk 0:02:44]}  Qb6 {[%clk 0:02:41]} 11. Nf3 {[%clk 0:02:05]}  Nbd7 {[%clk 0:02:39]} 12. Be2 {[%clk 0:02:03]}  Ne4 {[%clk 0:02:37]} 13. Qa3 {[%clk 0:02:00]}  a5 {[%clk 0:02:21]} 14. O-O {[%clk 0:01:57]}  Qb4 {[%clk 0:02:20]} 15. Nxe4 {[%clk 0:01:47]}  dxe4 {[%clk 0:02:12]} 16. Qxb4 {[%clk 0:01:43]}  axb4 {[%clk 0:02:11]} 17. Nd2 {[%clk 0:01:44]}  Nf6 {[%clk 0:02:01]} 18. Nc4 {[%clk 0:01:40]}  Ke7 {[%clk 0:01:57]} 19. a3 {[%clk 0:01:38]}  bxa3 {[%clk 0:01:52]} 20. Nxa3 {[%clk 0:01:30]}  Be6 {[%clk 0:01:47]} 21. Nc4 {[%clk 0:01:17]}  Bxc4 {[%clk 0:01:41]} 22. Bxc4 {[%clk 0:01:18]}  Nd5 {[%clk 0:01:41]} 23. Bxd5 {[%clk 0:01:00]}  cxd5 {[%clk 0:01:42]} 24. g4 {[%clk 0:01:01]}  Kd6 {[%clk 0:01:37]} 25. Rfc1 {[%clk 0:00:28]}  Rhc8 {[%clk 0:01:16]} 26. Rxc8 {[%clk 0:00:25]}  Rxc8 {[%clk 0:01:17]} 27. Ra7 {[%clk 0:00:21]}  Ra8 {[%clk 0:01:18]} 28. Rxa8 {[%clk 0:00:21]} 1-0


[Site "https://www.chess.com"]

[Event "Titled Tuesday Blitz April 26 Early 2022"]
[White "Swiercz, Dariusz"]
[Black "Urazayev, Arystanbek"]
[WhiteFideId "1126881"]
[BlackFideId "13709810"]
[WhiteElo "2627"]
[BlackElo "2422"]
[Result "1-0"]
[Round "05"]
[TimeControl "180+1"]
[Date "2022.04.26"]
[WhiteClock "0:00:11"]
[BlackClock "0:00:19"]

1. Nf3 {[%clk 0:03:00]}  Nf6 {[%clk 0:02:49]} 2. b3 {[%clk 0:03:01]}  g6 {[%clk 0:02:50]} 3. Bb2 {[%clk 0:03:01]}  Bg7 {[%clk 0:02:47]} 4. c4 {[%clk 0:03:01]}  O-O {[%clk 0:02:46]} 5. g3 {[%clk 0:03:02]}  d6 {[%clk 0:02:46]} 6. Bg2 {[%clk 0:03:01]}  c5 {[%clk 0:02:45]} 7. O-O {[%clk 0:03:01]}  Nc6 {[%clk 0:02:45]} 8. d4 {[%clk 0:03:01]}  cxd4 {[%clk 0:02:46]} 9. Nxd4 {[%clk 0:03:01]}  Bd7 {[%clk 0:02:46]} 10. Nc2 {[%clk 0:03:01]}  a6 {[%clk 0:02:38]} 11. Nc3 {[%clk 0:03:01]}  Rb8 {[%clk 0:02:36]} 12. Ne3 {[%clk 0:02:59]}  b5 {[%clk 0:02:35]} 13. Qd2 {[%clk 0:02:43]}  Ne5 {[%clk 0:02:29]} 14. cxb5 {[%clk 0:02:38]}  axb5 {[%clk 0:02:30]} 15. Ncd5 {[%clk 0:02:37]}  Nxd5 {[%clk 0:02:26]} 16. Nxd5 {[%clk 0:02:37]}  e6 {[%clk 0:02:03]} 17. Nb4 {[%clk 0:02:21]}  d5 {[%clk 0:01:59]} 18. Rfc1 {[%clk 0:02:14]}  Qb6 {[%clk 0:01:39]} 19. e3 {[%clk 0:02:14]}  Rfc8 {[%clk 0:01:33]} 20. Bd4 {[%clk 0:02:13]}  Qd6 {[%clk 0:01:30]} 21. Qb2 {[%clk 0:01:57]}  Qxb4 {[%clk 0:01:26]} 22. Bxe5 {[%clk 0:01:57]}  Bxe5 {[%clk 0:01:24]} 23. Qxe5 {[%clk 0:01:58]}  Qd2 {[%clk 0:01:23]} 24. Rc7 {[%clk 0:01:53]}  Be8 {[%clk 0:01:16]} 25. h4 {[%clk 0:01:44]}  h5 {[%clk 0:01:15]} 26. Bh3 {[%clk 0:01:35]}  Rxc7 {[%clk 0:01:09]} 27. Qxc7 {[%clk 0:01:35]}  Ra8 {[%clk 0:01:09]} 28. Qe7 {[%clk 0:01:02]}  b4 {[%clk 0:01:05]} 29. Rf1 {[%clk 0:00:53]}  Bb5 {[%clk 0:00:50]} 30. Qb7 {[%clk 0:00:53]}  Ra5 {[%clk 0:00:43]} 31. Bxe6 {[%clk 0:00:23]}  fxe6 {[%clk 0:00:25]} 32. Qc8+ {[%clk 0:00:22]}  Kg7 {[%clk 0:00:20]} 33. Qc7+ {[%clk 0:00:23]}  Kf6 {[%clk 0:00:19]} 34. Qxa5 {[%clk 0:00:22]}  Bxf1 {[%clk 0:00:20]} 35. Kxf1 {[%clk 0:00:18]}  e5 {[%clk 0:00:20]} 36. Kg2 {[%clk 0:00:11]}  d4 {[%clk 0:00:20]} 37. Qd8+ {[%clk 0:00:07]}  Kg7 {[%clk 0:00:20]} 38. Qe7+ {[%clk 0:00:06]}  Kg8 {[%clk 0:00:21]} 39. Qe6+ {[%clk 0:00:06]}  Kf8 {[%clk 0:00:19]} 40. Qf6+ {[%clk 0:00:07]}  Kg8 {[%clk 0:00:20]} 41. Qxg6+ {[%clk 0:00:07]}  Kf8 {[%clk 0:00:20]} 42. Qh6+ {[%clk 0:00:07]}  Kg8 {[%clk 0:00:20]} 43. Qe6+ {[%clk 0:00:07]}  Kf8 {[%clk 0:00:20]} 44. Qf5+ {[%clk 0:00:08]}  Kg8 {[%clk 0:00:20]} 45. Qg5+ {[%clk 0:00:08]}  Kf8 {[%clk 0:00:21]} 46. exd4 {[%clk 0:00:08]}  Qxd4 {[%clk 0:00:19]} 47. Qf5+ {[%clk 0:00:08]}  Kg8 {[%clk 0:00:19]} 48. Qxh5 {[%clk 0:00:09]}  e4 {[%clk 0:00:19]} 49. Qg5+ {[%clk 0:00:09]}  Kh8 {[%clk 0:00:18]} 50. Qe3 {[%clk 0:00:10]}  Qd5 {[%clk 0:00:18]} 51. Qh6+ {[%clk 0:00:09]}  Kg8 {[%clk 0:00:18]} 52. Qg5+ {[%clk 0:00:10]}  Qxg5 {[%clk 0:00:18]} 53. hxg5 {[%clk 0:00:11]}  Kf7 {[%clk 0:00:18]} 54. f4 {[%clk 0:00:11]}  Kg6 {[%clk 0:00:19]} 55. Kf2 {[%clk 0:00:11]} 1-0


[Site "https://www.chess.com"]

[Event "Titled Tuesday Blitz April 26 Early 2022"]
[White "Tanenbaum, Zachary"]
[Black "Ibrahimli, Murad"]
[WhiteFideId "2060850"]
[BlackFideId "13410229"]
[WhiteElo "2168"]
[BlackElo "2109"]
[Result "0-1"]
[Round "05"]
[TimeControl "180+1"]
[Date "2022.04.26"]
[WhiteClock "0:00:35"]
[BlackClock "0:01:33"]

1. e4 {[%clk 0:02:59]}  c5 {[%clk 0:02:58]} 2. Nf3 {[%clk 0:03:00]}  d6 {[%clk 0:02:59]} 3. d4 {[%clk 0:03:00]}  cxd4 {[%clk 0:03:00]} 4. Nxd4 {[%clk 0:03:01]}  Nf6 {[%clk 0:03:00]} 5. Nc3 {[%clk 0:03:02]}  a6 {[%clk 0:03:00]} 6. Be3 {[%clk 0:03:02]}  e5 {[%clk 0:02:59]} 7. Nb3 {[%clk 0:03:02]}  Be6 {[%clk 0:02:59]} 8. h3 {[%clk 0:03:03]}  h5 {[%clk 0:02:57]} 9. f4 {[%clk 0:03:02]}  Qc7 {[%clk 0:02:56]} 10. Qd2 {[%clk 0:03:01]}  Nbd7 {[%clk 0:02:55]} 11. O-O-O {[%clk 0:03:01]}  Rc8 {[%clk 0:02:51]} 12. f5 {[%clk 0:02:45]}  Bc4 {[%clk 0:02:47]} 13. Bxc4 {[%clk 0:02:33]}  Qxc4 {[%clk 0:02:46]} 14. Qd3 {[%clk 0:02:34]}  b5 {[%clk 0:02:31]} 15. Qxc4 {[%clk 0:02:08]}  Rxc4 {[%clk 0:02:30]} 16. Na5 {[%clk 0:02:05]}  Rc7 {[%clk 0:02:20]} 17. a3 {[%clk 0:02:03]}  h4 {[%clk 0:02:20]} 18. Bg5 {[%clk 0:01:41]}  Rxc3 {[%clk 0:02:14]} 19. bxc3 {[%clk 0:01:37]}  Nxe4 {[%clk 0:02:13]} 20. Bd2 {[%clk 0:01:25]}  Nf2 {[%clk 0:02:10]} 21. Bg5 {[%clk 0:01:20]}  Nxh1 {[%clk 0:02:10]} 22. Rxh1 {[%clk 0:01:20]}  Rh5 {[%clk 0:01:58]} 23. Be3 {[%clk 0:01:13]}  Rxf5 {[%clk 0:01:58]} 24. Rd1 {[%clk 0:01:12]}  Nf6 {[%clk 0:01:50]} 25. Nb7 {[%clk 0:01:06]}  d5 {[%clk 0:01:50]} 26. Bc5 {[%clk 0:01:02]}  Bxc5 {[%clk 0:01:46]} 27. Nxc5 {[%clk 0:01:02]}  Rf2 {[%clk 0:01:43]} 28. Nxa6 {[%clk 0:01:01]}  Kd7 {[%clk 0:01:42]} 29. Nb4 {[%clk 0:01:00]}  Ke6 {[%clk 0:01:40]} 30. Na6 {[%clk 0:00:51]}  Kd6 {[%clk 0:01:37]} 31. Rd2 {[%clk 0:00:47]}  Rxd2 {[%clk 0:01:37]} 32. Kxd2 {[%clk 0:00:48]}  Ne4+ {[%clk 0:01:38]} 33. Kd3 {[%clk 0:00:48]}  f5 {[%clk 0:01:37]} 34. Nb4 {[%clk 0:00:44]}  g5 {[%clk 0:01:38]} 35. Na2 {[%clk 0:00:42]}  g4 {[%clk 0:01:38]} 36. Ke3 {[%clk 0:00:39]}  gxh3 {[%clk 0:01:31]} 37. gxh3 {[%clk 0:00:40]}  Nxc3 {[%clk 0:01:32]} 38. Nxc3 {[%clk 0:00:37]}  d4+ {[%clk 0:01:32]} 39. Kd3 {[%clk 0:00:37]}  dxc3 {[%clk 0:01:33]} 40. Kxc3 {[%clk 0:00:37]}  f4 {[%clk 0:01:33]} 41. Kd3 {[%clk 0:00:35]}  Kd5 {[%clk 0:01:33]} 0-1


[Site "https://www.chess.com"]

[Event "Titled Tuesday Blitz April 26 Early 2022"]
[White "Tatarinov, Dmitry"]
[Black "Yuan, Qingyu"]
[WhiteFideId "24160067"]
[BlackFideId "8609772"]
[WhiteElo "2302"]
[BlackElo "2359"]
[Result "0-1"]
[Round "05"]
[TimeControl "180+1"]
[Date "2022.04.26"]
[WhiteClock "0:00:12"]
[BlackClock "0:00:06"]

1. d4 {[%clk 0:03:00]}  d5 {[%clk 0:02:59]} 2. c4 {[%clk 0:03:01]}  e6 {[%clk 0:03:00]} 3. Nf3 {[%clk 0:03:01]}  Nf6 {[%clk 0:03:00]} 4. g3 {[%clk 0:03:01]}  dxc4 {[%clk 0:03:01]} 5. Bg2 {[%clk 0:03:02]}  c5 {[%clk 0:03:01]} 6. O-O {[%clk 0:03:01]}  Nc6 {[%clk 0:03:02]} 7. Na3 {[%clk 0:03:01]}  cxd4 {[%clk 0:02:59]} 8. Nxc4 {[%clk 0:03:01]}  Be7 {[%clk 0:02:58]} 9. Qb3 {[%clk 0:02:59]}  O-O {[%clk 0:02:51]} 10. Rd1 {[%clk 0:03:00]}  Bc5 {[%clk 0:02:34]} 11. e3 {[%clk 0:02:41]}  Nd5 {[%clk 0:02:31]} 12. exd4 {[%clk 0:02:39]}  Be7 {[%clk 0:02:29]} 13. Nfe5 {[%clk 0:02:37]}  Na5 {[%clk 0:02:23]} 14. Nxa5 {[%clk 0:02:35]}  Qxa5 {[%clk 0:02:24]} 15. Bd2 {[%clk 0:02:31]}  Qb6 {[%clk 0:02:09]} 16. Qxb6 {[%clk 0:02:20]}  Nxb6 {[%clk 0:01:50]} 17. Rac1 {[%clk 0:02:20]}  Bd6 {[%clk 0:01:50]} 18. Bf4 {[%clk 0:02:11]}  Nd5 {[%clk 0:01:36]} 19. Bd2 {[%clk 0:02:03]}  b6 {[%clk 0:01:26]} 20. Rc6 {[%clk 0:01:59]}  Rd8 {[%clk 0:01:15]} 21. Rdc1 {[%clk 0:01:15]}  Bb7 {[%clk 0:01:09]} 22. R6c4 {[%clk 0:01:14]}  f6 {[%clk 0:00:49]} 23. Nc6 {[%clk 0:01:05]}  Rd7 {[%clk 0:00:45]} 24. a4 {[%clk 0:01:03]}  Ba6 {[%clk 0:00:40]} 25. R4c2 {[%clk 0:01:01]}  Bd3 {[%clk 0:00:36]} 26. Bxd5 {[%clk 0:00:40]}  exd5 {[%clk 0:00:36]} 27. Rc3 {[%clk 0:00:41]}  Bf5 {[%clk 0:00:29]} 28. f3 {[%clk 0:00:39]}  h5 {[%clk 0:00:29]} 29. Kf2 {[%clk 0:00:38]}  Kf7 {[%clk 0:00:28]} 30. b4 {[%clk 0:00:37]}  Re8 {[%clk 0:00:25]} 31. b5 {[%clk 0:00:35]}  g5 {[%clk 0:00:21]} 32. Re3 {[%clk 0:00:33]}  Rxe3 {[%clk 0:00:17]} 33. Bxe3 {[%clk 0:00:34]}  Rc7 {[%clk 0:00:17]} 34. Nd8+ {[%clk 0:00:22]}  Ke8 {[%clk 0:00:14]} 35. Nc6 {[%clk 0:00:20]}  Kd7 {[%clk 0:00:12]} 36. h4 {[%clk 0:00:20]}  gxh4 {[%clk 0:00:10]} 37. gxh4 {[%clk 0:00:21]}  a5 {[%clk 0:00:04]} 38. Rg1 {[%clk 0:00:21]}  Ke6 {[%clk 0:00:03]} 39. Re1 {[%clk 0:00:17]}  Kf7 {[%clk 0:00:03]} 40. Re2 {[%clk 0:00:17]}  Rc8 {[%clk 0:00:03]} 41. Re1 {[%clk 0:00:14]}  Rg8 {[%clk 0:00:03]} 42. Rc1 {[%clk 0:00:13]}  Bg3+ {[%clk 0:00:03]} 43. Ke2 {[%clk 0:00:14]}  Bd6 {[%clk 0:00:03]} 44. Kf2 {[%clk 0:00:14]}  Rg3 {[%clk 0:00:03]} 45. Na7 {[%clk 0:00:12]}  Rh3 {[%clk 0:00:04]} 46. Rc6 {[%clk 0:00:12]}  Rh2+ {[%clk 0:00:04]} 47. Kg1 {[%clk 0:00:12]}  Bg3 {[%clk 0:00:05]} 48. Bf4 {[%clk 0:00:12]}  Bxf4 {[%clk 0:00:05]} 49. Rxb6 {[%clk 0:00:12]}  Bh3 {[%clk 0:00:05]} 50. Nc6 {[%clk 0:00:12]}  Rd2 {[%clk 0:00:04]} 51. Rb7+ {[%clk 0:00:13]}  Kg6 {[%clk 0:00:04]} 52. Re7 {[%clk 0:00:12]}  Rd1+ {[%clk 0:00:04]} 53. Kf2 {[%clk 0:00:12]}  Rd2+ {[%clk 0:00:05]} 54. Ke1 {[%clk 0:00:13]}  Rc2 {[%clk 0:00:05]} 55. Re8 {[%clk 0:00:12]}  Kf7 {[%clk 0:00:05]} 56. Re7+ {[%clk 0:00:12]}  Kf8 {[%clk 0:00:06]} 57. Re2 {[%clk 0:00:12]}  Rc1+ {[%clk 0:00:05]} 58. Kf2 {[%clk 0:00:12]}  Rf1# {[%clk 0:00:06]} 0-1


[Site "https://www.chess.com"]

[Event "Titled Tuesday Blitz April 26 Early 2022"]
[White "Terzi, Alexei"]
[Black "Rom, Jasper"]
[WhiteFideId "13505076"]
[BlackFideId "2023733"]
[WhiteElo "2031"]
[BlackElo "2233"]
[Result "0-1"]
[Round "05"]
[TimeControl "180+1"]
[Date "2022.04.26"]
[WhiteClock "0:00:02"]
[BlackClock "0:00:02"]

1. e4 {[%clk 0:03:00]}  e6 {[%clk 0:02:59]} 2. d4 {[%clk 0:03:00]}  d5 {[%clk 0:02:57]} 3. Bd3 {[%clk 0:03:01]}  dxe4 {[%clk 0:02:56]} 4. Bxe4 {[%clk 0:03:02]}  Nf6 {[%clk 0:02:57]} 5. Bf3 {[%clk 0:03:02]}  Nbd7 {[%clk 0:02:57]} 6. Bf4 {[%clk 0:02:53]}  c5 {[%clk 0:02:49]} 7. c3 {[%clk 0:02:40]}  Qb6 {[%clk 0:02:47]} 8. Qd2 {[%clk 0:02:27]}  cxd4 {[%clk 0:02:31]} 9. cxd4 {[%clk 0:02:25]}  Bb4 {[%clk 0:02:27]} 10. Nc3 {[%clk 0:02:25]}  O-O {[%clk 0:02:28]} 11. Nge2 {[%clk 0:02:25]}  Nd5 {[%clk 0:02:22]} 12. Bxd5 {[%clk 0:02:17]}  exd5 {[%clk 0:02:21]} 13. O-O {[%clk 0:02:16]}  Nf6 {[%clk 0:02:21]} 14. Ng3 {[%clk 0:02:09]}  Be6 {[%clk 0:02:01]} 15. a3 {[%clk 0:02:02]}  Be7 {[%clk 0:01:51]} 16. Rfe1 {[%clk 0:01:55]}  Rfe8 {[%clk 0:01:50]} 17. b4 {[%clk 0:01:37]}  Qa6 {[%clk 0:01:29]} 18. Qe2 {[%clk 0:01:27]}  Qc4 {[%clk 0:01:21]} 19. Nb5 {[%clk 0:01:15]}  Bd8 {[%clk 0:00:29]} 20. Rac1 {[%clk 0:01:05]}  Qxe2 {[%clk 0:00:28]} 21. Rxe2 {[%clk 0:01:05]}  Bd7 {[%clk 0:00:10]} 22. Nd6 {[%clk 0:00:51]}  Rxe2 {[%clk 0:00:09]} 23. Nxe2 {[%clk 0:00:52]}  b6 {[%clk 0:00:09]} 24. Be5 {[%clk 0:00:33]}  Ne4 {[%clk 0:00:09]} 25. f3 {[%clk 0:00:31]}  Nxd6 {[%clk 0:00:08]} 26. Bxd6 {[%clk 0:00:31]}  Rc8 {[%clk 0:00:08]} 27. Rxc8 {[%clk 0:00:29]}  Bxc8 {[%clk 0:00:09]} 28. Nc3 {[%clk 0:00:28]}  Bb7 {[%clk 0:00:08]} 29. b5 {[%clk 0:00:24]}  f6 {[%clk 0:00:08]} 30. Kf1 {[%clk 0:00:21]}  Kf7 {[%clk 0:00:08]} 31. Ke2 {[%clk 0:00:20]}  Ke6 {[%clk 0:00:08]} 32. Bg3 {[%clk 0:00:20]}  Be7 {[%clk 0:00:08]} 33. a4 {[%clk 0:00:21]}  Bb4 {[%clk 0:00:07]} 34. Nd1 {[%clk 0:00:21]}  a6 {[%clk 0:00:08]} 35. Be1 {[%clk 0:00:16]}  Bd6 {[%clk 0:00:06]} 36. g3 {[%clk 0:00:14]}  axb5 {[%clk 0:00:07]} 37. axb5 {[%clk 0:00:14]}  Bc8 {[%clk 0:00:07]} 38. Nc3 {[%clk 0:00:08]}  Bd7 {[%clk 0:00:08]} 39. Kd3 {[%clk 0:00:06]}  Bb4 {[%clk 0:00:07]} 40. Bd2 {[%clk 0:00:06]}  Bxc3 {[%clk 0:00:06]} 41. Kxc3 {[%clk 0:00:07]}  Bxb5 {[%clk 0:00:07]} 42. Bf4 {[%clk 0:00:08]}  Be2 {[%clk 0:00:06]} 43. Bc7 {[%clk 0:00:07]}  b5 {[%clk 0:00:04]} 44. Kd2 {[%clk 0:00:08]}  Bxf3 {[%clk 0:00:03]} 45. Ke3 {[%clk 0:00:09]}  Be4 {[%clk 0:00:03]} 46. Ba5 {[%clk 0:00:10]}  Kd7 {[%clk 0:00:03]} 47. Bb4 {[%clk 0:00:11]}  Kc6 {[%clk 0:00:04]} 48. Kf4 {[%clk 0:00:11]}  Kd7 {[%clk 0:00:04]} 49. Ke3 {[%clk 0:00:12]}  Ke6 {[%clk 0:00:04]} 50. Kf4 {[%clk 0:00:12]}  g5+ {[%clk 0:00:05]} 51. Ke3 {[%clk 0:00:13]}  h5 {[%clk 0:00:05]} 52. Bf8 {[%clk 0:00:13]}  Kf5 {[%clk 0:00:05]} 53. Kf2 {[%clk 0:00:10]}  Kg4 {[%clk 0:00:05]} 54. Be7 {[%clk 0:00:07]}  f5 {[%clk 0:00:05]} 55. Bd6 {[%clk 0:00:06]}  h4 {[%clk 0:00:05]} 56. Be7 {[%clk 0:00:03]}  hxg3+ {[%clk 0:00:03]} 57. hxg3 {[%clk 0:00:04]}  f4 {[%clk 0:00:03]} 58. gxf4 {[%clk 0:00:04]}  Kxf4 {[%clk 0:00:02]} 59. Bd6+ {[%clk 0:00:04]}  Kf5 {[%clk 0:00:02]} 60. Kg3 {[%clk 0:00:05]}  Bd3 {[%clk 0:00:02]} 61. Kf3 {[%clk 0:00:04]}  Bc2 {[%clk 0:00:02]} 62. Ke3 {[%clk 0:00:05]}  Bd1 {[%clk 0:00:02]} 63. Kd2 {[%clk 0:00:03]}  Bf3 {[%clk 0:00:01]} 64. Ke3 {[%clk 0:00:03]}  Be4 {[%clk 0:00:01]} 65. Bc5 {[%clk 0:00:02]}  Kg4 {[%clk 0:00:02]} 66. Bd6 {[%clk 0:00:02]}  Kh3 {[%clk 0:00:02]} 67. Kf2 {[%clk 0:00:02]}  g4 {[%clk 0:00:02]} 0-1


[Site "https://www.chess.com"]

[Event "Titled Tuesday Blitz April 26 Early 2022"]
[White "Topalov, Aleksandar"]
[Black "Myshakov, Fyodor"]
[WhiteFideId "925659"]
[BlackFideId "14111284"]
[WhiteElo "2158"]
[BlackElo "2310"]
[Result "0-1"]
[Round "05"]
[TimeControl "180+1"]
[Date "2022.04.26"]
[WhiteClock "0:00:03"]
[BlackClock "0:00:16"]

1. b3 {[%clk 0:03:00]}  d5 {[%clk 0:02:59]} 2. Bb2 {[%clk 0:02:58]}  c6 {[%clk 0:03:00]} 3. f4 {[%clk 0:02:57]}  Nf6 {[%clk 0:02:59]} 4. Nf3 {[%clk 0:02:56]}  Bg4 {[%clk 0:02:59]} 5. e3 {[%clk 0:02:56]}  e6 {[%clk 0:02:59]} 6. Be2 {[%clk 0:02:56]}  Bxf3 {[%clk 0:02:59]} 7. Bxf3 {[%clk 0:02:56]}  Be7 {[%clk 0:02:59]} 8. O-O {[%clk 0:02:56]}  O-O {[%clk 0:03:00]} 9. d3 {[%clk 0:02:53]}  Nbd7 {[%clk 0:03:00]} 10. Nd2 {[%clk 0:02:53]}  Rc8 {[%clk 0:03:01]} 11. g4 {[%clk 0:02:51]}  Ne8 {[%clk 0:03:00]} 12. e4 {[%clk 0:02:45]}  f6 {[%clk 0:03:00]} 13. e5 {[%clk 0:02:41]}  fxe5 {[%clk 0:03:00]} 14. fxe5 {[%clk 0:02:39]}  Bc5+ {[%clk 0:02:59]} 15. Kh1 {[%clk 0:02:38]}  Qh4 {[%clk 0:02:57]} 16. Qe2 {[%clk 0:02:32]}  g6 {[%clk 0:02:52]} 17. Bg2 {[%clk 0:02:25]}  Ng7 {[%clk 0:02:52]} 18. Rae1 {[%clk 0:02:02]}  h5 {[%clk 0:02:52]} 19. h3 {[%clk 0:01:50]}  Bf2 {[%clk 0:02:46]} 20. Rd1 {[%clk 0:01:46]}  Qg3 {[%clk 0:02:43]} 21. Ba3 {[%clk 0:01:06]}  c5 {[%clk 0:02:40]} 22. Bb2 {[%clk 0:01:03]}  Rf4 {[%clk 0:02:37]} 23. gxh5 {[%clk 0:00:57]}  Nxh5 {[%clk 0:02:35]} 24. Nf3 {[%clk 0:00:57]}  Rcf8 {[%clk 0:02:32]} 25. Qxf2 {[%clk 0:00:57]}  Rxf3 {[%clk 0:02:29]} 26. Bxf3 {[%clk 0:00:44]}  Qxh3+ {[%clk 0:02:06]} 27. Kg1 {[%clk 0:00:41]}  Rf5 {[%clk 0:01:51]} 28. Bg2 {[%clk 0:00:33]}  Qg4 {[%clk 0:01:39]} 29. Qd2 {[%clk 0:00:25]}  Nf4 {[%clk 0:01:31]} 30. Rxf4 {[%clk 0:00:25]}  Rxf4 {[%clk 0:01:30]} 31. Rf1 {[%clk 0:00:25]}  g5 {[%clk 0:01:20]} 32. Bc1 {[%clk 0:00:20]}  Nxe5 {[%clk 0:00:49]} 33. Rxf4 {[%clk 0:00:19]}  gxf4 {[%clk 0:00:50]} 34. Qxf4 {[%clk 0:00:19]}  Qd1+ {[%clk 0:00:45]} 35. Kh2 {[%clk 0:00:19]}  Nf7 {[%clk 0:00:42]} 36. Qd2 {[%clk 0:00:14]}  Qh5+ {[%clk 0:00:41]} 37. Kg1 {[%clk 0:00:15]}  b6 {[%clk 0:00:39]} 38. a4 {[%clk 0:00:14]}  a5 {[%clk 0:00:38]} 39. Qe1 {[%clk 0:00:12]}  Qg4 {[%clk 0:00:33]} 40. Be3 {[%clk 0:00:09]}  Ne5 {[%clk 0:00:29]} 41. Qf2 {[%clk 0:00:09]}  Nf7 {[%clk 0:00:27]} 42. Qf3 {[%clk 0:00:08]}  Qg7 {[%clk 0:00:25]} 43. Kf2 {[%clk 0:00:06]}  Qc3 {[%clk 0:00:23]} 44. Qe2 {[%clk 0:00:04]}  Qf6+ {[%clk 0:00:23]} 45. Ke1 {[%clk 0:00:03]}  Qa1+ {[%clk 0:00:23]} 46. Kd2 {[%clk 0:00:03]}  Qe5 {[%clk 0:00:16]} 0-1


[Site "https://www.chess.com"]